fUSD/lending_fUSD_20260621
["ID","MTS","AMOUNT","RATE_DAILY","PERIOD"]
[425945905,1782041482000,-507.29,0.00028493,2]
[425945910,1782041482000,-500.0,0.00028493,2]
[425945906,1782041482000,-500.0,0.00028493,2]
[425945903,1782041482000,-500.0,0.00028493,2]
[425945902,1782041482000,-500.0,0.00028493,2]
[425945909,1782041482000,-500.0,0.00028493,2]
[425945908,1782041482000,-500.0,0.00028493,2]
[425945914,1782041482000,-1482.41,0.00028493,2]
[425945926,1782041482000,-500.0,0.00028493,2]
[425945925,1782041482000,-500.0,0.00028493,2]
[425945915,1782041482000,-500.0,0.00028493,2]
[425945917,1782041482000,-500.0,0.00028493,2]
[425945943,1782041482000,-500.0,0.00028493,2]
[425945988,1782041482000,-809.98,0.00028493,2]
[425945950,1782041482000,-500.0,0.00028493,2]
[425945977,1782041482000,-500.0,0.00028493,2]
[425945976,1782041482000,-500.0,0.00028493,2]
[425945981,1782041482000,-500.0,0.00028493,2]
[425945982,1782041482000,-500.0,0.00028493,2]
[425945991,1782041482000,-500.0,0.00028493,2]
[425945987,1782041482000,-1153.83,0.00028493,2]
[425945985,1782041482000,-500.0,0.00028493,2]
[425945990,1782041482000,-500.0,0.00028493,2]
[425945983,1782041482000,-500.0,0.00028493,2]
[425945984,1782041482000,-500.0,0.00028493,2]
[425946003,1782041482000,-1401.64,0.00028493,2]
[425945975,1782041482000,-3690.31,0.00028493,2]
[425945989,1782041482000,-500.0,0.00028493,2]
[425945993,1782041482000,-5276.66,0.00028493,2]
[425945997,1782041482000,-500.0,0.00028493,2]
[425945999,1782041482000,-500.0,0.00028493,2]
[425946002,1782041482000,-500.0,0.00028493,2]
[425945995,1782041482000,-500.0,0.00028493,2]
[425945998,1782041482000,-500.0,0.00028493,2]
[425945994,1782041482000,-500.0,0.00028493,2]
[425946001,1782041482000,-791.58,0.00028493,2]
[425945996,1782041482000,-599.42,0.00028493,2]
[425946000,1782041482000,-500.0,0.00028493,2]
[425945949,1782041482000,-500.0,0.00028493,2]
[425945986,1782041482000,-5490.85,0.00028493,2]
[425945973,1782041482000,-500.0,0.00028493,2]
[425945992,1782041482000,-6368.24,0.00028493,2]
[425945974,1782041482000,-500.0,0.00028493,2]
[425945980,1782041482000,-1816.77,0.00028493,2]
[425945947,1782041482000,-500.0,0.00028493,2]
[425945952,1782041482000,-500.0,0.00028493,2]
[425945953,1782041482000,-500.0,0.00028493,2]
[425945951,1782041482000,-500.0,0.00028493,2]
[425945954,1782041482000,-4138.94,0.00028493,2]
[425945956,1782041482000,-1121.32,0.00028493,2]
[425945958,1782041482000,-624.18,0.00028493,2]
[425945955,1782041482000,-1247.04,0.00028493,2]
[425945959,1782041482000,-657.86,0.00028493,2]
[425945960,1782041482000,-3754.21,0.00028493,2]
[425945961,1782041482000,-4407.46,0.00028493,2]
[425945963,1782041482000,-614.69,0.00028493,2]
[425945957,1782041482000,-500.0,0.00028493,2]
[425945962,1782041482000,-1570.62,0.00028493,2]
[425945979,1782041482000,-500.0,0.00028493,2]
[425945972,1782041482000,-500.0,0.00028493,2]
[425945969,1782041482000,-500.0,0.00028493,2]
[425945967,1782041482000,-1285.55,0.00028493,2]
[425945966,1782041482000,-5144.26,0.00028493,2]
[425945978,1782041482000,-500.0,0.00028493,2]
[425945968,1782041482000,-791.03,0.00028493,2]
[425945971,1782041482000,-500.0,0.00028493,2]
[425945965,1782041482000,-500.0,0.00028493,2]
[425945964,1782041482000,-500.0,0.00028493,2]
[425945970,1782041482000,-500.0,0.00028493,2]
[425946046,1782041483000,-500.0,0.00028493,2]
[425946044,1782041483000,-500.0,0.00028493,2]
[425946042,1782041483000,-500.0,0.00028493,2]
[425946041,1782041483000,-2937.45,0.00028493,2]
[425946045,1782041483000,-500.0,0.00028493,2]
[425946035,1782041483000,-500.0,0.00028493,2]
[425946039,1782041483000,-500.0,0.00028493,2]
[425946031,1782041483000,-1051.17,0.00028493,2]
[425946028,1782041483000,-712.28,0.00028493,2]
[425946034,1782041483000,-5071.67,0.00028493,2]
[425946051,1782041483000,-500.0,0.00028493,2]
[425946038,1782041483000,-500.0,0.00028493,2]
[425946040,1782041483000,-500.0,0.00028493,2]
[425946063,1782041483000,-4920.34,0.00028493,2]
[425946048,1782041483000,-500.0,0.00028493,2]
[425946043,1782041483000,-5790.86,0.00028493,2]
[425946050,1782041483000,-500.0,0.00028493,2]
[425946047,1782041483000,-500.0,0.00028493,2]
[425946055,1782041483000,-551.78,0.00028493,2]
[425946058,1782041483000,-500.0,0.00028493,2]
[425946059,1782041483000,-500.0,0.00028493,2]
[425946052,1782041483000,-500.0,0.00028493,2]
[425946056,1782041483000,-5086.11,0.00028493,2]
[425946062,1782041483000,-500.0,0.00028493,2]
[425946053,1782041483000,-1540.59,0.00028493,2]
[425946033,1782041483000,-405.6301871,0.00028493,2]
[425946049,1782041483000,-500.0,0.00028493,2]
[425946037,1782041483000,-500.0,0.00028493,2]
[425946006,1782041483000,-500.0,0.00028493,2]
[425946032,1782041483000,-4526.61,0.00028493,2]
[425946004,1782041483000,-500.0,0.00028493,2]
[425946054,1782041483000,-4927.15,0.00028493,2]
[425946005,1782041483000,-500.0,0.00028493,2]
[425946007,1782041483000,-500.0,0.00028493,2]
[425946010,1782041483000,-500.0,0.00028493,2]
[425946008,1782041483000,-500.0,0.00028493,2]
[425946011,1782041483000,-500.0,0.00028493,2]
[425946009,1782041483000,-500.0,0.00028493,2]
[425946012,1782041483000,-500.0,0.00028493,2]
[425946014,1782041483000,-1496.3,0.00028493,2]
[425946013,1782041483000,-5471.52,0.00028493,2]
[425946020,1782041483000,-2310.69,0.00028493,2]
[425946036,1782041483000,-1000.0,0.00028493,2]
[425946017,1782041483000,-500.0,0.00028493,2]
[425946018,1782041483000,-500.0,0.00028493,2]
[425946016,1782041483000,-10299.35,0.00028493,2]
[425946026,1782041483000,-5185.6,0.00028493,2]
[425946024,1782041483000,-3778.65,0.00028493,2]
[425946019,1782041483000,-500.0,0.00028493,2]
[425946021,1782041483000,-500.0,0.00028493,2]
[425946025,1782041483000,-500.0,0.00028493,2]
[425946022,1782041483000,-500.0,0.00028493,2]
[425946023,1782041483000,-500.0,0.00028493,2]
[425946029,1782041483000,-500.0,0.00028493,2]
[425946027,1782041483000,-1084.65,0.00028493,2]
[425946030,1782041483000,-515.74,0.00028493,2]
[425946015,1782041483000,-500.0,0.00028493,2]
[425946061,1782041483000,-8889.73,0.00028493,2]
[425946065,1782041483000,-500.0,0.00028493,2]
[425946060,1782041483000,-602.16,0.00028493,2]
[425946092,1782041483000,-500.0,0.00028493,2]
[425946097,1782041483000,-635.22,0.00028493,2]
[425946098,1782041483000,-907.49,0.00028493,2]
[425946091,1782041483000,-500.0,0.00028493,2]
[425946096,1782041483000,-9769.93,0.00028493,2]
[425946099,1782041483000,-6658.95,0.00028493,2]
[425946101,1782041483000,-4117.41,0.00028493,2]
[425946102,1782041483000,-500.0,0.00028493,2]
[425946103,1782041483000,-500.0,0.00028493,2]
[425946106,1782041483000,-500.0,0.00028493,2]
[425946107,1782041483000,-500.0,0.00028493,2]
[425946105,1782041483000,-4489.89,0.00028493,2]
[425946110,1782041483000,-500.0,0.00028493,2]
[425946104,1782041483000,-500.0,0.00028493,2]
[425946108,1782041483000,-500.0,0.00028493,2]
[425946111,1782041483000,-500.0,0.00028493,2]
[425946109,1782041483000,-900.14,0.00028493,2]
[425946113,1782041483000,-500.0,0.00028493,2]
[425946116,1782041483000,-500.0,0.00028493,2]
[425946115,1782041483000,-500.0,0.00028493,2]
[425946114,1782041483000,-5756.01,0.00028493,2]
[425946112,1782041483000,-500.0,0.00028493,2]
[425946057,1782041483000,-3633.38,0.00028493,2]
[425946118,1782041483000,-1112.63,0.00028493,2]
[425946121,1782041483000,-500.0,0.00028493,2]
[425946120,1782041483000,-673.53,0.00028493,2]
[425946119,1782041483000,-500.0,0.00028493,2]
[425946094,1782041483000,-6306.04,0.00028493,2]
[425946100,1782041483000,-5383.81,0.00028493,2]
[425946117,1782041483000,-288.39198991,0.00028493,2]
[425946093,1782041483000,-7097.95,0.00028493,2]
[425946095,1782041483000,-500.0,0.00028493,2]
[425946073,1782041483000,-8710.73,0.00028493,2]
[425946066,1782041483000,-500.0,0.00028493,2]
[425946076,1782041483000,-500.0,0.00028493,2]
[425946074,1782041483000,-5372.41,0.00028493,2]
[425946075,1782041483000,-6718.25,0.00028493,2]
[425946071,1782041483000,-6055.84,0.00028493,2]
[425946070,1782041483000,-802.4,0.00028493,2]
[425946072,1782041483000,-500.0,0.00028493,2]
[425946068,1782041483000,-1675.81,0.00028493,2]
[425946067,1782041483000,-7329.28,0.00028493,2]
[425946069,1782041483000,-9406.56,0.00028493,2]
[425946077,1782041483000,-1355.35,0.00028493,2]
[425946064,1782041483000,-630.74,0.00028493,2]
[425946082,1782041483000,-762.22,0.00028493,2]
[425946083,1782041483000,-500.0,0.00028493,2]
[425946078,1782041483000,-830.82,0.00028493,2]
[425946088,1782041483000,-500.0,0.00028493,2]
[425946089,1782041483000,-10187.27,0.00028493,2]
[425946086,1782041483000,-500.0,0.00028493,2]
[425946087,1782041483000,-3767.72,0.00028493,2]
[425946085,1782041483000,-9459.19,0.00028493,2]
[425946079,1782041483000,-500.0,0.00028493,2]
[425946081,1782041483000,-569.43,0.00028493,2]
[425946090,1782041483000,-500.0,0.00028493,2]
[425946080,1782041483000,-500.0,0.00028493,2]
[425946084,1782041483000,-747.22,0.00028493,2]
[425946151,1782041484000,-500.0,0.00028493,2]
[425946160,1782041484000,-500.0,0.00028493,2]
[425946150,1782041484000,-4706.4,0.00028493,2]
[425946154,1782041484000,-629.21,0.00028493,2]
[425946157,1782041484000,-1177.81,0.00028493,2]
[425946153,1782041484000,-7027.59,0.00028493,2]
[425946156,1782041484000,-500.0,0.00028493,2]
[425946152,1782041484000,-9051.47,0.00028493,2]
[425946149,1782041484000,-560.48,0.00028493,2]
[425946142,1782041484000,-9170.86,0.00028493,2]
[425946161,1782041484000,-500.0,0.00028493,2]
[425946165,1782041484000,-3570.15,0.00028493,2]
[425946158,1782041484000,-500.0,0.00028493,2]
[425946155,1782041484000,-500.0,0.00028493,2]
[425946162,1782041484000,-500.0,0.00028493,2]
[425946164,1782041484000,-500.0,0.00028493,2]
[425946163,1782041484000,-6082.93,0.00028493,2]
[425946166,1782041484000,-500.0,0.00028493,2]
[425946167,1782041484000,-500.0,0.00028493,2]
[425946170,1782041484000,-500.0,0.00028493,2]
[425946172,1782041484000,-560.51,0.00028493,2]
[425946146,1782041484000,-7268.59,0.00028493,2]
[425946159,1782041484000,-500.0,0.00028493,2]
[425946143,1782041484000,-6837.07,0.00028493,2]
[425946132,1782041484000,-513.46,0.00028493,2]
[425946144,1782041484000,-500.0,0.00028493,2]
[425946168,1782041484000,-4255.92,0.00028493,2]
[425946122,1782041484000,-3494.12,0.00028493,2]
[425946135,1782041484000,-500.0,0.00028493,2]
[425946134,1782041484000,-500.0,0.00028493,2]
[425946124,1782041484000,-8419.53,0.00028493,2]
[425946126,1782041484000,-623.68,0.00028493,2]
[425946130,1782041484000,-8823.24,0.00028493,2]
[425946129,1782041484000,-13098.52,0.00028493,2]
[425946128,1782041484000,-11148.58,0.00028493,2]
[425946133,1782041484000,-500.0,0.00028493,2]
[425946145,1782041484000,-528.51,0.00028493,2]
[425946123,1782041484000,-500.0,0.00028493,2]
[425946127,1782041484000,-500.0,0.00028493,2]
[425946131,1782041484000,-500.0,0.00028493,2]
[425946147,1782041484000,-520.25749114,0.00028493,2]
[425946138,1782041484000,-500.0,0.00028493,2]
[425946136,1782041484000,-500.0,0.00028493,2]
[425946137,1782041484000,-604.06,0.00028493,2]
[425946148,1782041484000,-500.0,0.00028493,2]
[425946139,1782041484000,-500.0,0.00028493,2]
[425946140,1782041484000,-4309.61,0.00028493,2]
[425946141,1782041484000,-644.07,0.00028493,2]
[425946125,1782041484000,-500.0,0.00028493,2]
[425946171,1782041484000,-500.0,0.00028493,2]
[425946169,1782041484000,-500.0,0.00028493,2]
[425946184,1782041484000,-1317.73,0.00028493,2]
[425946200,1782041484000,-904.85,0.00028493,2]
[425946201,1782041484000,-500.0,0.00028493,2]
[425946207,1782041484000,-525.46,0.00028493,2]
[425946204,1782041484000,-500.0,0.00028493,2]
[425946205,1782041484000,-1014.39,0.00028493,2]
[425946203,1782041484000,-500.0,0.00028493,2]
[425946206,1782041484000,-500.0,0.00028493,2]
[425946214,1782041484000,-996.79,0.00028493,2]
[425946212,1782041484000,-670.9,0.00028493,2]
[425946208,1782041484000,-314.41546524,0.00028493,2]
[425946202,1782041484000,-6716.5,0.00028493,2]
[425946209,1782041484000,-4282.25,0.00028493,2]
[425946210,1782041484000,-500.0,0.00028493,2]
[425946220,1782041484000,-500.0,0.00028493,2]
[425946217,1782041484000,-500.0,0.00028493,2]
[425946218,1782041484000,-4283.71,0.00028493,2]
[425946216,1782041484000,-500.0,0.00028493,2]
[425946215,1782041484000,-500.0,0.00028493,2]
[425946221,1782041484000,-500.0,0.00028493,2]
[425946219,1782041484000,-1956.1,0.00028493,2]
[425946223,1782041484000,-729.73,0.00028493,2]
[425946174,1782041484000,-500.0,0.00028493,2]
[425946211,1782041484000,-2639.33,0.00028493,2]
[425946198,1782041484000,-500.0,0.00028493,2]
[425946213,1782041484000,-500.0,0.00028493,2]
[425946199,1782041484000,-1574.38,0.00028493,2]
[425946222,1782041484000,-2259.71,0.00028493,2]
[425946197,1782041484000,-8765.19,0.00028493,2]
[425946173,1782041484000,-6743.01,0.00028493,2]
[425946175,1782041484000,-500.0,0.00028493,2]
[425946176,1782041484000,-500.0,0.00028493,2]
[425946182,1782041484000,-500.0,0.00028493,2]
[425946180,1782041484000,-500.0,0.00028493,2]
[425946179,1782041484000,-500.0,0.00028493,2]
[425946177,1782041484000,-500.0,0.00028493,2]
[425946178,1782041484000,-500.0,0.00028493,2]
[425946183,1782041484000,-15685.64,0.00028493,2]
[425946185,1782041484000,-709.91,0.00028493,2]
[425946181,1782041484000,-7687.48,0.00028493,2]
[425946196,1782041484000,-500.0,0.00028493,2]
[425946195,1782041484000,-500.0,0.00028493,2]
[425946193,1782041484000,-494.55648082,0.00028493,2]
[425946191,1782041484000,-500.0,0.00028493,2]
[425946190,1782041484000,-2865.46,0.00028493,2]
[425946187,1782041484000,-500.0,0.00028493,2]
[425946194,1782041484000,-1267.73,0.00028493,2]
[425946188,1782041484000,-1036.7,0.00028493,2]
[425946186,1782041484000,-551.8,0.00028493,2]
[425946189,1782041484000,-5230.31,0.00028493,2]
[425946192,1782041484000,-577.03,0.00028493,2]
[425946269,1782041485000,-611.76,0.00028767,2]
[425946257,1782041485000,-156.942244,0.00028767,2]
[425946256,1782041485000,-500.0,0.00028767,2]
[425946258,1782041485000,-500.0,0.00028767,2]
[425946260,1782041485000,-500.0,0.00028767,2]
[425946259,1782041485000,-500.0,0.00028767,2]
[425946250,1782041485000,-411.91,0.0002863,30]
[425946268,1782041485000,-500.0,0.00028767,2]
[425946261,1782041485000,-500.0,0.00028767,2]
[425946272,1782041485000,-500.0,0.00028767,2]
[425946264,1782041485000,-608.74,0.00028767,2]
[425946263,1782041485000,-242.61854967,0.00028767,2]
[425946282,1782041485000,-500.0,0.00028767,2]
[425946262,1782041485000,-500.0,0.00028767,2]
[425946267,1782041485000,-500.0,0.00028767,2]
[425946271,1782041485000,-504.32,0.00028767,2]
[425946270,1782041485000,-510.54,0.00028767,2]
[425946266,1782041485000,-500.0,0.00028767,2]
[425946273,1782041485000,-500.0,0.00028767,2]
[425946274,1782041485000,-500.0,0.00028767,2]
[425946277,1782041485000,-500.0,0.00028767,2]
[425946276,1782041485000,-692.58,0.00028767,2]
[425946278,1782041485000,-500.0,0.00028767,2]
[425946275,1782041485000,-500.0,0.00028767,2]
[425946253,1782041485000,-160.26828885,0.00028766,2]
[425946265,1782041485000,-490.58608959,0.00028767,2]
[425946254,1782041485000,-501.82455083,0.00028767,2]
[425946230,1782041485000,-500.0,0.00028493,2]
[425946252,1782041485000,-1386.0,0.00028751,3]
[425946225,1782041485000,-500.0,0.00028493,2]
[425946224,1782041485000,-255.3633247,0.00028493,2]
[425946226,1782041485000,-491.42816863,0.00028493,2]
[425946227,1782041485000,-500.0,0.00028493,2]
[425946283,1782041485000,-500.0,0.00028767,2]
[425946229,1782041485000,-500.0,0.00028493,2]
[425946235,1782041485000,-1067.51,0.00028493,2]
[425946236,1782041485000,-500.0,0.00028493,2]
[425946228,1782041485000,-909.56,0.00028493,2]
[425946231,1782041485000,-573.05,0.00028493,2]
[425946233,1782041485000,-500.0,0.00028493,2]
[425946232,1782041485000,-500.0,0.00028493,2]
[425946237,1782041485000,-500.0,0.00028493,2]
[425946234,1782041485000,-503.69,0.00028493,2]
[425946239,1782041485000,-500.0,0.00028493,2]
[425946246,1782041485000,-342.37,0.0002863,30]
[425946247,1782041485000,-365.26,0.0002863,30]
[425946238,1782041485000,-1203.84,0.00028493,2]
[425946245,1782041485000,-41644.49,0.000285,7]
[425946248,1782041485000,-412.33,0.0002863,30]
[425946240,1782041485000,-500.0,0.00028493,2]
[425946242,1782041485000,-500.0,0.00028493,2]
[425946244,1782041485000,-7500.0,0.000285,2]
[425946241,1782041485000,-500.0,0.00028493,2]
[425946243,1782041485000,-2183.7,0.00028493,2]
[425946249,1782041485000,-342.45,0.0002863,30]
[425946251,1782041485000,-477.02566168,0.00028693,2]
[425946255,1782041485000,-500.0,0.00028767,2]
[425946279,1782041485000,-500.0,0.00028767,2]
[425946284,1782041485000,-500.0,0.00028767,2]
[425946281,1782041485000,-500.0,0.00028767,2]
[425946312,1782041485000,-500.0,0.00028767,2]
[425946315,1782041485000,-536.39360677,0.00028767,2]
[425946311,1782041485000,-500.0,0.00028767,2]
[425946313,1782041485000,-500.0,0.00028767,2]
[425946320,1782041485000,-750.93,0.00028767,2]
[425946321,1782041485000,-500.0,0.00028767,2]
[425946323,1782041485000,-500.0,0.00028767,2]
[425946324,1782041485000,-500.0,0.00028767,2]
[425946326,1782041485000,-543.31,0.00028767,2]
[425946330,1782041485000,-500.0,0.00028767,2]
[425946332,1782041485000,-500.0,0.00028767,2]
[425946322,1782041485000,-500.0,0.00028767,2]
[425946308,1782041485000,-500.0,0.00028767,2]
[425946329,1782041485000,-570.4435564,0.00028767,2]
[425946328,1782041485000,-500.0,0.00028767,2]
[425946333,1782041485000,-500.0,0.00028767,2]
[425946331,1782041485000,-500.0,0.00028767,2]
[425946335,1782041485000,-500.0,0.00028767,2]
[425946336,1782041485000,-500.0,0.00028767,2]
[425946334,1782041485000,-500.0,0.00028767,2]
[425946340,1782041485000,-500.0,0.00028767,2]
[425946338,1782041485000,-500.0,0.00028767,2]
[425946337,1782041485000,-500.0,0.00028767,2]
[425946341,1782041485000,-500.0,0.00028767,2]
[425946339,1782041485000,-599.62,0.00028767,2]
[425946280,1782041485000,-500.0,0.00028767,2]
[425946327,1782041485000,-500.0,0.00028767,2]
[425946314,1782041485000,-500.0,0.00028767,2]
[425946325,1782041485000,-509.99419187,0.00028767,2]
[425946316,1782041485000,-495.60117996,0.00028767,2]
[425946317,1782041485000,-500.0,0.00028767,2]
[425946294,1782041485000,-500.0,0.00028767,2]
[425946285,1782041485000,-770.75,0.00028767,2]
[425946286,1782041485000,-500.0,0.00028767,2]
[425946290,1782041485000,-601.57,0.00028767,2]
[425946289,1782041485000,-500.0,0.00028767,2]
[425946295,1782041485000,-500.0,0.00028767,2]
[425946287,1782041485000,-500.0,0.00028767,2]
[425946296,1782041485000,-500.0,0.00028767,2]
[425946293,1782041485000,-500.0,0.00028767,2]
[425946288,1782041485000,-500.0,0.00028767,2]
[425946291,1782041485000,-500.0,0.00028767,2]
[425946297,1782041485000,-866.67,0.00028767,2]
[425946301,1782041485000,-500.0,0.00028767,2]
[425946292,1782041485000,-622.17253193,0.00028767,2]
[425946319,1782041485000,-500.0,0.00028767,2]
[425946300,1782041485000,-526.22,0.00028767,2]
[425946310,1782041485000,-832.58,0.00028767,2]
[425946318,1782041485000,-500.0,0.00028767,2]
[425946309,1782041485000,-500.0,0.00028767,2]
[425946304,1782041485000,-562.08,0.00028767,2]
[425946305,1782041485000,-721.38,0.00028767,2]
[425946306,1782041485000,-500.0,0.00028767,2]
[425946303,1782041485000,-500.0,0.00028767,2]
[425946302,1782041485000,-500.0,0.00028767,2]
[425946298,1782041485000,-500.0,0.00028767,2]
[425946299,1782041485000,-500.0,0.00028767,2]
[425946307,1782041485000,-500.0,0.00028767,2]
[425946374,1782041486000,-506.76,0.00028767,2]
[425946380,1782041486000,-572.19,0.00028767,2]
[425946392,1782041486000,-500.0,0.00028767,2]
[425946381,1782041486000,-899.87,0.00028767,2]
[425946372,1782041486000,-500.0,0.00028767,2]
[425946371,1782041486000,-500.0,0.00028767,2]
[425946376,1782041486000,-500.0,0.00028767,2]
[425946377,1782041486000,-500.0,0.00028767,2]
[425946375,1782041486000,-563.62,0.00028767,2]
[425946368,1782041486000,-500.0,0.00028767,2]
[425946391,1782041486000,-609.23,0.00028767,2]
[425946373,1782041486000,-500.0,0.00028767,2]
[425946382,1782041486000,-500.0,0.00028767,2]
[425946390,1782041486000,-500.0,0.00028767,2]
[425946384,1782041486000,-454.19796267,0.00028767,2]
[425946385,1782041486000,-764.28,0.00028767,2]
[425946387,1782041486000,-500.0,0.00028767,2]
[425946388,1782041486000,-500.0,0.00028767,2]
[425946386,1782041486000,-500.0,0.00028767,2]
[425946389,1782041486000,-500.0,0.00028767,2]
[425946393,1782041486000,-636.73982534,0.00028767,2]
[425946395,1782041486000,-1098.61,0.00028767,2]
[425946403,1782041486000,-500.0,0.00028767,2]
[425946400,1782041486000,-500.0,0.00028767,2]
[425946396,1782041486000,-905.26,0.00028767,2]
[425946394,1782041486000,-500.0,0.00028767,2]
[425946383,1782041486000,-500.0,0.00028767,2]
[425946378,1782041486000,-500.0,0.00028767,2]
[425946398,1782041486000,-500.0,0.00028767,2]
[425946379,1782041486000,-675.01,0.00028767,2]
[425946342,1782041486000,-500.0,0.00028767,2]
[425946343,1782041486000,-528.84,0.00028767,2]
[425946344,1782041486000,-606.7,0.00028767,2]
[425946349,1782041486000,-779.95,0.00028767,2]
[425946355,1782041486000,-500.0,0.00028767,2]
[425946352,1782041486000,-500.0,0.00028767,2]
[425946353,1782041486000,-500.0,0.00028767,2]
[425946350,1782041486000,-510.48,0.00028767,2]
[425946348,1782041486000,-500.01751649,0.00028767,2]
[425946354,1782041486000,-500.0,0.00028767,2]
[425946347,1782041486000,-500.0,0.00028767,2]
[425946351,1782041486000,-500.0,0.00028767,2]
[425946346,1782041486000,-230.86487079,0.00028767,2]
[425946345,1782041486000,-875.57,0.00028767,2]
[425946359,1782041486000,-500.0,0.00028767,2]
[425946365,1782041486000,-500.0,0.00028767,2]
[425946356,1782041486000,-749.57,0.00028767,2]
[425946367,1782041486000,-500.0,0.00028767,2]
[425946357,1782041486000,-859.42,0.00028767,2]
[425946358,1782041486000,-500.0,0.00028767,2]
[425946362,1782041486000,-500.0,0.00028767,2]
[425946364,1782041486000,-689.03,0.00028767,2]
[425946360,1782041486000,-500.0,0.00028767,2]
[425946366,1782041486000,-500.0,0.00028767,2]
[425946363,1782041486000,-828.79,0.00028767,2]
[425946361,1782041486000,-540.17,0.00028767,2]
[425946369,1782041486000,-500.0,0.00028767,2]
[425946370,1782041486000,-500.0,0.00028767,2]
[425946399,1782041486000,-500.0,0.00028767,2]
[425946402,1782041486000,-983.91,0.00028767,2]
[425946397,1782041486000,-500.0,0.00028767,2]
[425946442,1782041486000,-500.0,0.00028767,2]
[425946443,1782041486000,-592.77,0.00028767,2]
[425946441,1782041486000,-500.0,0.00028767,2]
[425946437,1782041486000,-500.0,0.00028767,2]
[425946440,1782041486000,-500.0,0.00028767,2]
[425946438,1782041486000,-837.97,0.00028767,2]
[425946432,1782041486000,-500.0,0.00028767,2]
[425946439,1782041486000,-500.0,0.00028767,2]
[425946433,1782041486000,-500.0,0.00028767,2]
[425946435,1782041486000,-164.1897827,0.00028767,2]
[425946455,1782041486000,-570.63,0.00028767,2]
[425946450,1782041486000,-623.05,0.00028767,2]
[425946445,1782041486000,-500.0,0.00028767,2]
[425946454,1782041486000,-500.0,0.00028767,2]
[425946449,1782041486000,-500.0,0.00028767,2]
[425946446,1782041486000,-500.0,0.00028767,2]
[425946447,1782041486000,-992.95,0.00028767,2]
[425946444,1782041486000,-500.0,0.00028767,2]
[425946453,1782041486000,-500.0,0.00028767,2]
[425946451,1782041486000,-1191.12,0.00028767,2]
[425946448,1782041486000,-1259.13,0.00028767,2]
[425946452,1782041486000,-500.0,0.00028767,2]
[425946460,1782041486000,-500.0,0.00028767,2]
[425946458,1782041486000,-500.0,0.00028767,2]
[425946457,1782041486000,-500.0,0.00028767,2]
[425946456,1782041486000,-747.79,0.00028767,2]
[425946459,1782041486000,-511.44137,0.00028767,2]
[425946434,1782041486000,-526.22,0.00028767,2]
[425946436,1782041486000,-500.0,0.00028767,2]
[425946461,1782041486000,-1113.8,0.00028767,2]
[425946423,1782041486000,-500.0,0.00028767,2]
[425946401,1782041486000,-4333.78,0.00028767,2]